[Event "45th FIDE Olympiad 2024"]
[Site "Budapest"]
[Date "2024.09.12"]
[Round "2.5"]
[White "Rapport, Richard"]
[Black "Cori, Jorge"]
[Result "1-0"]
[ECO "B53"]
[WhiteElo "2715"]
[BlackElo "2609"]
[Annotator "TA"]
[PlyCount "59"]
[EventDate "2024.09.05"]
[EventType "team-tourn"]
[EventCountry "HUN"]
[SourceTitle "playchess.com"]
[Source "ChessBase"]
[SourceQuality "1"]
[WhiteTeam "Hungary"]
[BlackTeam "Peru"]
[WhiteTeamCountry "HUN"]
[BlackTeamCountry "PER"]
[TimeControl "40/5400+30:1800+30"]

{[%evp 9,59,4,11,8,7,0,10,12,11,0,0,0,14,12,20,7,0,4,23,4,8,0,0,-19,-15,-29,0,0,26,32,52,55,45,50,40,59,55,49,48,60,36,11,101,98,87,99,195,181,383,282,845,845]} 1. e4 {[%emt 0:00:36]} c5 {[%emt 0:00:11]} 2. Nf3 {[%emt 0:00:23]} d6 {[%emt 0:00:13]} 3. d4 {[%emt 0:01:01]} cxd4 {[%emt 0:00:21]} 4. Qxd4 {[%emt 0:00:05]} Nc6 {[%emt 0:07:22]} 5. Qe3 {[%emt 0:00:35]} Nf6 {[%emt 0:01:02]} 6. Nc3 {[%emt 0:00:10]} g6 {[%emt 0:04:19]} 7. h3 {[%emt 0:00:41]} Bg7 {[%emt 0:00:09]} 8. Bc4 {[%emt 0:00:05] The position is equal.} O-O {[%emt 0:01:45]} 9. O-O {[%emt 0:00:08]} a6 {[%emt 0:01:00]} 10. a4 {[%emt 0:00:58]} Bd7 {[%emt 0:09:57]} 11. Rd1 {[%emt 0:01:38]} Rc8 {[%emt 0:00:15]} 12. Qe1 {[%emt 0:10:15]} Qa5 {[%emt 0:03:16]} 13. Ra3 {[%emt 0:06:52]} Ne5 {[%emt 0:08:21]} 14. Nxe5 {[%emt 0:05:11]} Qxe5 {[%emt 0:01:14]} 15. Ba2 {[%emt 0:03:06]} Be6 {[%emt 0:04:36]} 16. f4 {[%emt 0:15:56][%cal Bf2f4,Bf4e5,Be5e6,Be6f7][%mdl 32]} Qc5+ {[%emt 0:02:55]} 17. Be3 {[%emt 0:00:07]} Qc6 {[%emt 0:00:04]} 18. e5 {[%emt 0:01:03]} dxe5 {[%emt 0:02:10]} 19. fxe5 {[%emt 0:00:47] [#] And now Bxe6 would win.} Nd7 {[%emt 0:17:53] White must now prevent ...Bxa2.} 20. Nd5 {[%emt 0:01:08]} Bxd5 {[%emt 0:00:18]} 21. Bxd5 {[%emt 0:00:36]} Qxc2 {[%emt 0:00:04]} 22. e6 {[%emt 0:11:05]} Ne5 {[%emt 0:12:28]} 23. Rd2 {[%emt 0:04:41]} (23. Bxb7 Qxb2 24. exf7+ Nxf7 25. Bxc8 Qxa3 $11) 23... Qc1 {[%emt 0:09:50]} 24. exf7+ {[%emt 0:00:20]} Kh8 $1 {[%emt 0:00:04]} (24... Nxf7 $2 25. Bxf7+ Kh8 (25... Rxf7 $2 26. Rd8+ Rxd8 27. Qxc1 $18) 26. Qxc1 (26. Rd1 Qxb2 27. Rb3 Qa2 $18) 26... Rxc1+ 27. Kh2 $18) 25. Rd1 {[%emt 0:03:06]} Qxb2 {[%emt 0:00:06]} (25... Qc2 $1 $11 {keeps the balance.}) 26. Rb3 $36 {[%emt 0:01:04][%cal Ba3b3,Bb3b7,Bb7e7][%mdl 2080] White is really pushing.} Qc2 {[%emt 0:00:06]} 27. Rxb7 {[%emt 0:03:10]} Rcd8 {[%emt 0:00:55]} (27... Bf6 $16) 28. Rxe7 $18 {[%emt 0:06:56]} Qxa4 $2 {[%emt 0:07:45] [#]} ({Wrong is} 28... Nd3 $2 29. Be4 $18 (29. Rxd3 Qxd3 30. Bf3 Bd4 $17)) (28... a5 {keeps fighting.} 29. Bb6 Nd3 30. Rxd3 (30. Qxa5 $2 {too greedy.} Qxd1+ 31. Kh2 Rb8 $19) 30... Qxd3 31. Bxd8 (31. Qxa5 $2 Rxd5 32. Qb4 Bd4+ 33. Kh2 Bxb6 $19) 31... Qxd5) 29. Bb6 {[%emt 0:04:00] This pair of bishops is nice.} Rd6 {[%emt 0:05:42]} (29... Rxd5 30. Rxd5 Qc6) 30. Bc5 {[%emt 0:01:28] Weighted Error Value: White=0.10 (very precise) /Black=0.31.  Mistake:       	---       	Black=4      Inaccurate:     	---       	Black=2      OK:         	White=7     	Black=10     Best:        	White=7     	---        Strong:       	---       	Black=1} 1-0

[Event "45th FIDE Olympiad 2024"]
[Site "Budapest"]
[Date "2024.09.12"]
[Round "2.5"]
[White "Kumar, Manoj"]
[Black "Allam, Mohamed"]
[Result "0-1"]
[ECO "B13"]
[WhiteElo "1951"]
[BlackElo "2053"]
[Annotator "NA"]
[PlyCount "96"]
[EventDate "2024.09.05"]
[EventType "team-tourn"]
[EventCountry "HUN"]
[SourceTitle "playchess.com"]
[Source "ChessBase"]
[SourceQuality "1"]
[WhiteTeam "Fiji"]
[BlackTeam "Palestine"]
[WhiteTeamCountry "FIJ"]
[BlackTeamCountry "PLE"]
[TimeControl "40/5400+30:1800+30"]

1. d4 d5 2. c4 c5 3. e3 cxd4 4. exd4 Nf6 5. Nf3 Nc6 6. Nc3 Bg4 7. Be2 dxc4 8. O-O e6 9. Qa4 Be7 10. Qxc4 O-O 11. Be3 Nb4 12. Qb3 Qa5 13. Rac1 Nbd5 14. Bd2 Qb6 15. Nxd5 Nxd5 16. Qxb6 Nxb6 17. h3 Bf5 18. Bf4 Nd5 19. Be5 Rac8 20. Rfd1 Bc2 21. Rf1 Nb4 22. a3 Bd3 23. Bxd3 Nxd3 24. Rb1 f6 25. Bg3 Rc2 26. Ne1 Nxe1 27. Rfxe1 Kf7 28. Bf4 Rfc8 29. Rbc1 Ke8 30. Kf1 Kd7 31. Rxc2 Rxc2 32. Re2 Rc4 33. Rd2 Kc6 34. Be3 Kd5 35. Ke2 a5 36. Kd3 a4 37. Rd1 f5 38. Rc1 Rxc1 39. Bxc1 Bf6 40. Be3 f4 41. Bxf4 Bxd4 42. Bd2 Bxf2 43. b3 axb3 44. Kc3 e5 45. Kxb3 e4 46. Ba5 b6 47. Bb4 e3 48. Kc2 e2 0-1

[Event "45th FIDE Olympiad 2024"]
[Site "Budapest"]
[Date "2024.09.12"]
[Round "2.6"]
[White "Leiva, Gianmarco"]
[Black "Sjugirov, Sanan"]
[Result "0-1"]
[ECO "B40"]
[WhiteElo "2389"]
[BlackElo "2644"]
[Annotator "TA"]
[PlyCount "107"]
[EventDate "2024.09.05"]
[EventType "team-tourn"]
[EventCountry "HUN"]
[SourceTitle "playchess.com"]
[Source "ChessBase"]
[SourceQuality "1"]
[WhiteTeam "Peru"]
[BlackTeam "Hungary"]
[WhiteTeamCountry "PER"]
[BlackTeamCountry "HUN"]
[TimeControl "40/5400+30:1800+30"]

{[%evp 26,107,0,0,0,-8,15,18,26,-9,-11,-16,-14,-11,16,-37,-19,-39,-37,-71,-44,-55,-54,-79,-71,-68,-63,-68,-64,-72,-69,-133,-137,-154,-105,-96,-110,-99,-100,-128,-107,-130,-130,-138,-146,-143,-140,-165,-158,-156,-131,-129,-110,-167,-121,-152,-131,-144,-124,-171,-176,-187,-184,-177,-171,-212,-205,-212,-202,-277,-273,-275,-230,-291,-310,-281,0,-256,-306,-295,-294,-219,-276,-183]} 1. e4 {[%emt 0:00:04]} c5 {[%emt 0:00:17]} 2. Nf3 {[%emt 0:00:16]} e6 {[%emt 0:00:18]} 3. g3 {[%emt 0:00:42]} Nc6 {[%emt 0:00:48]} 4. Bg2 {[%emt 0:00:40]} Nf6 {[%emt 0:00:20]} 5. Qe2 {[%emt 0:00:16]} e5 {[%emt 0:02:29]} 6. O-O {[%emt 0:05:26] B40: Sicilian: 2...e6, Unusual lines.} Be7 {[%emt 0:01:05]} 7. Na3 {[%emt 0:00:53]} O-O {[%emt 0:01:04]} 8. Nc4 {[%emt 0:08:11]} d6 {[%emt 0:03:26]} 9. d3 {[%emt 0:02:17]} Re8 {[%emt 0:03:01]} 10. c3 {[%emt 0:04:39]} h6 {[%emt 0:05:18]} 11. Ne3 {[%emt 0:32:31]} Be6 {[%emt 0:06:07]} 12. Nh4 {[%emt 0:05:05]} d5 {[%emt 0:06:32]} 13. Qf3 {[%emt 0:13:32]} d4 {[%emt 0:43:17]} 14. Nd5 {[%emt 0:00:40]} Qc8 $146 {[%emt 0:02:14]} ({Predecessor:} 14... Qd7 15. Nxf6+ Bxf6 16. Nf5 Bg5 17. Bh3 Qd8 18. Qe2 Bxc1 19. Raxc1 Kh7 20. Bg2 Qd7 {1-0 Sengupta,D (2473)-Narva,M (2387) Prague op 2023 (8)}) 15. h3 {[%emt 0:09:18]} (15. Bxh6 Bg4 (15... gxh6 $2 16. Nxf6+ Kg7 17. Nf5+ Bxf5 18. Nxe8+ Qxe8 19. exf5 $18) 16. Nxe7+ Rxe7 $19 (16... Nxe7 $2 17. Bh3 $19) (16... Nxe7 $2 17. Bh3 $19)) 15... dxc3 {[%emt 0:04:40]} (15... Rb8 {looks sharper.} 16. Bxh6 Bxh3 17. Bxh3 Qxh3 18. Bd2 Nxd5 19. exd5 Bxh4 20. dxc6 e4) 16. bxc3 {[%emt 0:02:13]} Rd8 {[%emt 0:00:31]} 17. Nxf6+ {[%emt 0:05:55]} (17. Nxe7+ $5 Nxe7 18. Bxh6 $11) 17... Bxf6 {[%emt 0:00:11]} 18. Nf5 {[%emt 0:00:07]} Bg5 {[%emt 0:04:34]} 19. Rd1 {[%emt 0:04:47]} Qd7 {[%emt 0:02:20]} 20. Ba3 {[%emt 0:01:05]} (20. Bxg5 $1 $11 hxg5 21. Qe3) 20... b6 $15 {[%emt 0:01:59]} 21. h4 {[%emt 0:01:32]} Be7 {[%emt 0:00:05]} 22. h5 {[%emt 0:00:48]} Bg5 {[%emt 0:00:56]} 23. Bb2 {[%emt 0:00:28]} Rac8 {[%emt 0:01:10]} 24. Bc1 {[%emt 0:00:28]} Bxc1 {[%emt 0:00:51]} 25. Raxc1 {[%emt 0:00:02]} Ne7 {[%emt 0:00:30]} ({Much worse is} 25... Bxa2 $6 26. Qg4 f6 27. Nxh6+ Kh7 28. Nf5 $11) 26. Bh3 {[%emt 0:00:49]} Nxf5 {[%emt 0:00:41]} (26... Bxa2 $2 {loses.} 27. Nxh6+ gxh6 28. Bxd7 $18) 27. Bxf5 {[%emt 0:00:13]} Bxf5 {[%emt 0:00:09]} 28. exf5 {[%emt 0:00:03]} (28. Qxf5 $15 Qxf5 29. exf5) 28... Rc6 $17 {[%emt 0:01:07]} 29. Qe4 {[%emt 0:01:28]} Rd6 {[%emt 0:01:11]} ({Black should play} 29... f6 30. a4 Rd6) 30. Qxe5 $17 {[%emt 0:00:28]} Rd5 {[%emt 0:00:04]} 31. Qe4 {[%emt 0:00:32]} Qxf5 {[%emt 0:00:43]} 32. Qxf5 {[%emt 0:00:28]} Rxf5 {[%emt 0:00:04]} 33. Rd2 {[%emt 0:00:28]} Rxh5 {[%emt 0:00:47]} 34. Re1 {[%emt 0:00:17]} Rhd5 {[%emt 0:01:25]} 35. Re3 {[%emt 0:00:35]} f6 {[%emt 0:00:42]} 36. Kf1 {[%emt 0:00:19]} Kf7 {[%emt 0:00:45]} 37. Ke2 {[%emt 0:00:04]} R8d6 {[%emt 0:05:17]} 38. Rb2 {[%emt 0:01:09]} h5 {[%emt 0:00:31]} 39. Rb1 {[%emt 0:00:35]} (39. a4 $17 {was called for.}) 39... Re6 {[%emt 0:00:36]} (39... c4 $19 40. dxc4 Rd2+ 41. Kf3 Rxa2) 40. Rh1 {[%emt 0:00:35]} g6 {[%emt 0:01:10]} 41. Rh4 {[%emt 0:30:14]} Rd7 {[%emt 0:30:56]} 42. g4 {[%emt 0:00:23]} (42. a4 $17 {was necessary.}) 42... Rxe3+ $19 {[%emt 0:00:30]} 43. fxe3 {[%emt 0:00:00]} hxg4 {[%emt 0:00:00]} 44. Rxg4 {[%emt 0:00:00]} g5 {[%emt 0:00:00]} 45. d4 {[%emt 0:00:00] [#]} cxd4 $1 {[%emt 0:00:00]} 46. cxd4 {[%emt 0:00:00]} Rd5 {[%emt 0:00:00]} 47. Kd3 {[%emt 0:00:00]} Ra5 {[%emt 0:00:00]} 48. Rg2 {[%emt 0:00:00]} Ke6 {[%emt 0:00:00]} 49. Ke4 {[%emt 0:00:00]} Ra4 {[%emt 0:00:00]} 50. Rf2 {[%emt 0:00:00]} Ra5 {[%emt 0:00:00]} 51. Rg2 $1 {[%emt 0:00:00]} f5+ {[%emt 0:00:00]} 52. Kf3 {[%emt 0:00:00] [#]} Kf6 $1 {[%emt 0:00:00]} 53. Rc2 {[%emt 0:00:00]} Ra3 {[%emt 0:00:00]} 54. Rc6+ {[%emt 0:00:00]} 0-1

[Event "45th FIDE Olympiad 2024"]
[Site "Budapest"]
[Date "2024.09.12"]
[Round "2.6"]
[White "Seder, Mohammed"]
[Black "Prasad, Rudr"]
[Result "1-0"]
[ECO "B10"]
[WhiteElo "2116"]
[BlackElo "1777"]
[Annotator "NA"]
[PlyCount "83"]
[EventDate "2024.09.05"]
[EventType "team-tourn"]
[EventCountry "HUN"]
[SourceTitle "playchess.com"]
[Source "ChessBase"]
[SourceQuality "1"]
[WhiteTeam "Palestine"]
[BlackTeam "Fiji"]
[WhiteTeamCountry "PLE"]
[BlackTeamCountry "FIJ"]
[TimeControl "40/5400+30:1800+30"]

1. e4 c6 2. Nf3 d5 3. d3 dxe4 4. dxe4 Qxd1+ 5. Kxd1 Bg4 6. Nbd2 Nd7 7. Be2 e6 8. Ne1 Ngf6 9. f3 Bh5 10. Nd3 Nc5 11. Nf4 Bg6 12. c3 O-O-O 13. Kc2 e5 14. Nxg6 hxg6 15. Bc4 Rd7 16. b4 Na4 17. Bb3 Nb6 18. a4 Bd6 19. a5 Na8 20. Nc4 Bb8 21. Be3 Re8 22. Rhd1 Rxd1 23. Rxd1 Rd8 24. Nb2 Rxd1 25. Kxd1 Nc7 26. Bxf7 Nb5 27. Kc2 g5 28. Bxg5 b6 29. axb6 axb6 30. Nc4 Kb7 31. h4 Nd6 32. Nxd6+ Bxd6 33. h5 Nh7 34. Bd8 b5 35. Be6 c5 36. Bf5 Nf8 37. Kb3 c4+ 38. Kc2 Kc6 39. g4 Nd7 40. g5 Bf8 41. g6 Nf6 42. h6 1-0

[Event "45th FIDE Olympiad 2024"]
[Site "Budapest"]
[Date "2024.09.12"]
[Round "2.7"]
[White "Berkes, Ferenc"]
[Black "Flores Quillas, Diego Saul Rodri"]
[Result "1/2-1/2"]
[ECO "E14"]
[WhiteElo "2605"]
[BlackElo "2451"]
[Annotator "TA"]
[PlyCount "66"]
[EventDate "2024.09.05"]
[EventType "team-tourn"]
[EventCountry "HUN"]
[SourceTitle "playchess.com"]
[Source "ChessBase"]
[SourceQuality "1"]
[WhiteTeam "Hungary"]
[BlackTeam "Peru"]
[WhiteTeamCountry "HUN"]
[BlackTeamCountry "PER"]
[TimeControl "40/5400+30:1800+30"]

{[%evp 13,66,-4,0,-2,-6,-11,10,0,7,3,14,0,20,19,35,10,24,0,21,18,23,6,27,26,27,23,27,19,20,27,27,3,9,-15,-14,-13,-6,-14,-14,-11,-12,-10,-10,-31,-10,-10,-6,-6,-7,-7,0,0,0,0,0]} 1. d4 {[%emt 0:00:03]} Nf6 {[%emt 0:00:28]} 2. Nf3 {[%emt 0:00:07]} e6 {[%emt 0:00:08]} 3. c4 {[%emt 0:00:07]} b6 {[%emt 0:00:13]} 4. e3 {[%emt 0:00:08]} Bb7 {[%emt 0:00:08]} 5. Bd3 {[%emt 0:00:10]} d5 {[%emt 0:01:06]} 6. cxd5 {[%emt 0:00:09]} exd5 {[%emt 0:00:05]} 7. O-O {[%emt 0:00:15]} Bd6 {[%emt 0:00:06]} 8. b3 {[%emt 0:00:08]} O-O {[%emt 0:00:51]} 9. Ba3 {[%emt 0:00:17]} c5 {[%emt 0:00:05]} 10. Nc3 {[%emt 0:00:12]} Re8 {[%emt 0:00:40]} 11. Rc1 {[%emt 0:00:50] White wants to play dxc5.} Nbd7 {[%emt 0:00:27]} 12. Bb2 {[%emt 0:03:01]} Bf8 {[%emt 0:06:31]} 13. Re1 {[%emt 0:07:01]} Ne4 {[%emt 0:02:40]} 14. Bf1 {[%emt 0:08:25]} Ndf6 {[%emt 0:04:44]} 15. Ne5 {[%emt 0:06:43]} cxd4 {[%emt 0:08:36]} 16. Nxe4 {[%emt 0:08:05]} dxe4 {[%emt 0:18:51]} 17. Qxd4 {[%emt 0:00:31]} Bc5 {[%emt 0:06:32]} 18. Qxd8 {[%emt 0:07:38]} Raxd8 {[%emt 0:02:31]} 19. Red1 {[%emt 0:03:18]} Rd5 {[%emt 0:19:02]} 20. Bb5 {[%emt 0:18:59]} Red8 {[%emt 0:02:07]} (20... Rexe5 $2 {is the wrong capture.} 21. Bxe5 Kf8 (21... Rxe5 $2 {perishes.} 22. Rxc5 Nd5 23. Rc7 $18) 22. Bxf6 gxf6 23. Rxd5 Bxd5 24. Bd7 $18) 21. Rxd5 {[%emt 0:00:33]} Nxd5 {[%emt 0:00:09]} 22. Rd1 {[%emt 0:03:50]} a6 {[%emt 0:02:52]} 23. Bc6 {[%emt 0:04:52]} Bxc6 {[%emt 0:00:21]} 24. Nxc6 {[%emt 0:00:05]} Rd6 {[%emt 0:01:11]} 25. a3 {[%emt 0:02:30]} Rxc6 {[%emt 0:02:03]} 26. Rxd5 {[%emt 0:00:06]} Rd6 {[%emt 0:00:04]} 27. Rxd6 {[%emt 0:00:08]} Bxd6 $11 {[%emt 0:00:01][%mdl 4096] Endgame. KB-KB} 28. g4 {[%emt 0:06:07]} f6 {[%emt 0:00:27]} 29. h3 {[%emt 0:01:26] The position is equal.} Kf7 {[%emt 0:00:19]} 30. f3 {[%emt 0:00:27]} exf3 {[%emt 0:00:52]} 31. Kf2 {[%emt 0:00:06] Prevents Bg3+} Ke6 {[%emt 0:00:12]} 32. e4 {[%emt 0:02:06]} Be5 {[%emt 0:04:31]} 33. Bc1 {[%emt 0:00:10]} b5 {[%emt 0:03:28] An interesting draw.   Weighted Error Value: White=0.06 (flawless) /Black=0.08 (flawless) .  OK:         	White=14    	Black=8      Best:        	White=1     	---} 1/2-1/2

[Event "45th FIDE Olympiad 2024"]
[Site "Budapest"]
[Date "2024.09.12"]
[Round "2.7"]
[White "Maharaj, Yash Krishen"]
[Black "Michel Yunis, Christian D."]
[Result "0-1"]
[ECO "B81"]
[WhiteElo "1847"]
[BlackElo "2220"]
[Annotator "ChessBase"]
[PlyCount "76"]
[EventDate "2024.09.05"]
[EventType "team-tourn"]
[EventCountry "HUN"]
[SourceTitle "playchess.com"]
[Source "ChessBase"]
[SourceQuality "1"]
[WhiteTeam "Fiji"]
[BlackTeam "Palestine"]
[WhiteTeamCountry "FIJ"]
[BlackTeamCountry "PLE"]
[TimeControl "40/5400+30:1800+30"]

1. e4 c5 2. Nf3 e6 3. d4 cxd4 4. Nxd4 Nf6 5. Nc3 d6 6. g4 h6 7. Rg1 Nc6 8. Be3 a6 9. Nxc6 bxc6 10. Qf3 Rb8 11. Bc4 d5 12. O-O-O Qa5 13. Bb3 Be7 14. h4 Nd7 15. g5 h5 16. exd5 cxd5 17. Rge1 Nc5 18. Bd4 Nxb3+ 19. cxb3 Kf8 20. Qg3 Rb7 21. Qe5 f6 22. Qf4 Kf7 23. Rd3 Rb4 24. Rf3 Ke8 25. Qe3 Rf8 26. gxf6 gxf6 27. Qd3 Kd8 28. Na4 Rxd4 29. Qxd4 Qxe1+ 30. Qd1 Qxd1+ 31. Kxd1 e5 32. Rc3 Bg4+ 33. f3 d4 34. Rd3 Bf5 35. Rd2 Rg8 36. Rf2 Rg1+ 37. Ke2 Bb4 38. Rh2 d3+ 0-1

[Event "45th FIDE Olympiad 2024"]
[Site "Budapest"]
[Date "2024.09.12"]
[Round "2.8"]
[White "Fernandez Sanchez, Fernando Miguel"]
[Black "Gledura, Benjamin"]
[Result "0-1"]
[ECO "D35"]
[WhiteElo "2399"]
[BlackElo "2628"]
[Annotator "TA"]
[PlyCount "80"]
[EventDate "2024.09.05"]
[EventType "team-tourn"]
[EventCountry "HUN"]
[SourceTitle "playchess.com"]
[Source "ChessBase"]
[SourceQuality "1"]
[WhiteTeam "Peru"]
[BlackTeam "Hungary"]
[WhiteTeamCountry "PER"]
[BlackTeamCountry "HUN"]
[TimeControl "40/5400+30:1800+30"]

{[%evp 21,80,0,0,0,0,-5,-10,-10,0,-6,-3,-6,-6,-22,0,0,0,-14,-8,-6,-12,-14,-11,-13,0,-43,-54,-60,-34,-60,-20,-29,-32,-45,-36,-41,-35,-40,-37,-39,0,0,0,-47,0,-106,-75,-81,-78,-81,-81,-68,-66,-345,-337,-584,-575,-1035,-1035,-1035,-1017]} 1. d4 {[%emt 0:00:03]} Nf6 {[%emt 0:00:21]} 2. c4 {[%emt 0:00:48]} e6 {[%emt 0:00:17]} 3. Nf3 {[%emt 0:00:26]} d5 {[%emt 0:00:38]} 4. cxd5 {[%emt 0:03:58]} exd5 {[%emt 0:00:13]} 5. Nc3 {[%emt 0:00:02]} c6 {[%emt 0:00:34]} 6. Bf4 {[%emt 0:00:23]} Bf5 {[%emt 0:00:32]} 7. e3 {[%emt 0:00:29]} Nbd7 {[%emt 0:00:44]} 8. h3 {[%emt 0:01:54]} Be7 {[%emt 0:02:07]} 9. Bd3 {[%emt 0:10:04]} Bxd3 {[%emt 0:00:48]} 10. Qxd3 {[%emt 0:00:02]} O-O {[%emt 0:00:19]} 11. O-O {[%emt 0:00:37]} Re8 {[%emt 0:00:10]} 12. Rab1 {[%emt 0:06:41]} Bf8 {[%emt 0:04:59]} 13. Ne5 {[%emt 0:02:07]} Nxe5 {[%emt 0:07:41]} 14. Bxe5 {[%emt 0:00:04] The position is equal.} Nd7 {[%emt 0:00:29]} 15. Bh2 {[%emt 0:03:22]} a5 {[%emt 0:01:35]} 16. Rfc1 {[%emt 0:13:43]} a4 {[%emt 0:07:12]} 17. Qd1 {[%emt 0:01:42]} Qa5 {[%emt 0:07:16]} 18. Rc2 {[%emt 0:01:56]} Nb6 {[%emt 0:06:56]} 19. b3 {[%emt 0:07:19]} axb3 {[%emt 0:01:14]} 20. axb3 {[%emt 0:00:03]} Qb4 {[%emt 0:00:36]} 21. Ne2 {[%emt 0:07:41]} Ra3 {[%emt 0:04:41]} 22. Nc1 {[%emt 0:01:38]} Nd7 {[%emt 0:03:18]} 23. Nd3 {[%emt 0:07:54]} Qb5 {[%emt 0:01:00]} 24. Rcc1 {[%emt 0:00:36]} h6 {[%emt 0:05:51]} 25. Qc2 {[%emt 0:04:45]} Rea8 {[%emt 0:01:14]} 26. Be5 {[%emt 0:08:14]} Ra2 {[%emt 0:08:02]} 27. Qc3 {[%emt 0:01:38]} Qa5 {[%emt 0:07:31]} 28. Qxa5 {[%emt 0:05:07]} R8xa5 {[%emt 0:00:37]} 29. b4 {[%emt 0:04:54]} Rb5 {[%emt 0:03:02]} 30. Bc7 {[%emt 0:00:53]} Nf6 {[%emt 0:02:37]} 31. Ra1 $1 {[%emt 0:04:47]} Rd2 {[%emt 0:01:23]} 32. Nc5 {[%emt 0:00:55]} (32. Ra3 $1 $11 {was preferrable.}) 32... Bxc5 {[%emt 0:01:12]} (32... Rxb4 $2 33. Ba5 Bxc5 34. Rxc5 $18) (32... Kh7 $15) 33. dxc5 {[%emt 0:00:10]} (33. bxc5 Rbb2 34. Rcb1 Rxf2 35. Rxb2 Rxb2 $19) (33. Rxc5 $11 Rxc5 (33... Rxb4 34. Ba5 $16) 34. bxc5) 33... d4 {[%emt 0:01:17]} (33... Rxb4 34. Ba5 Rbb2 35. Bxd2 Rxd2 36. Rcb1 $18) 34. exd4 {[%emt 0:00:53]} Nd5 $36 {[%emt 0:01:24][%mdl 2048] White is under strong pressure.} (34... Rxd4 $2 35. Ra8+ Kh7 36. Ba5 $17) (34... Rxb4 $2 {perishes.} 35. Ba5 Rdxd4 36. Bxb4 Rxb4 37. Rab1 (37. Rcb1 Rxb1+ 38. Rxb1 Ne4 $18) 37... Rxb1 38. Rxb1 $18) 35. Ra8+ {[%emt 0:00:38]} Kh7 {[%emt 0:00:07]} 36. Ba5 {[%emt 0:00:38]} Nxb4 {[%emt 0:02:39] Black has more active pieces.} 37. Rc4 $2 {[%emt 0:00:56][%mdl 8192] [#] Now White is beyond hope.} (37. Ra7 $15) 37... Ra2 $19 {[%emt 0:02:04]} ({Resist} 37... Rd1+ 38. Kh2 Nd5 39. Ra4) 38. Ra7 $2 {[%emt 0:00:28]} (38. Bxb4 {might work better.} Rxa8 39. Bd2) 38... Nd5 {[%emt 0:02:35][%cal Ob5b2] ...Rbb2! would now be deadly. Black is clearly winning.} (38... Raxa5 39. Rxa5 Rxa5 40. Rxb4 $11) 39. Bb6 {[%emt 0:00:39]} Rb1+ {[%emt 0:00:08]} ({Not} 39... Nxb6 40. cxb6 Rxa7 41. bxa7 $11) 40. Kh2 {[%emt 0:00:02]} Rxf2 {[%emt 0:00:14] Weighted Error Value: White=0.50/Black=0.08 (flawless) .  Loses game:     	White=1     	---        Mistake:       	White=3     	Black=1      Inaccurate:     	White=3     	Black=3      OK:         	White=8     	Black=7      Best:        	White=1     	Black=3      Strong:       	White=1     	---} 0-1

[Event "45th FIDE Olympiad 2024"]
[Site "Budapest"]
[Date "2024.09.12"]
[Round "2.8"]
[White "Abdel Wahab, Ahmad"]
[Black "Prakash, Prashil"]
[Result "1-0"]
[ECO "E61"]
[WhiteElo "1995"]
[BlackElo "1745"]
[Annotator "NA"]
[PlyCount "63"]
[EventDate "2024.09.05"]
[EventType "team-tourn"]
[EventCountry "HUN"]
[SourceTitle "playchess.com"]
[Source "ChessBase"]
[SourceQuality "1"]
[WhiteTeam "Palestine"]
[BlackTeam "Fiji"]
[WhiteTeamCountry "PLE"]
[BlackTeamCountry "FIJ"]
[TimeControl "40/5400+30:1800+30"]

1. d4 d6 2. c4 Nf6 3. Nc3 g6 4. e4 c6 5. Be2 Qa5 6. Qc2 Bg7 7. Nf3 Nbd7 8. O-O O-O 9. Rd1 a6 10. a3 c5 11. dxc5 Qxc5 12. Be3 Qc7 13. Rac1 Ng4 14. Bg5 Nde5 15. Nd5 Qc5 16. Nxe7+ Kh8 17. Bh4 f5 18. b4 Qa7 19. exf5 Bxf5 20. Nxf5 Rxf5 21. Rxd6 Nxf3+ 22. Bxf3 Nxh2 23. Kxh2 Be5+ 24. Bg3 Bxd6 25. Bxd6 Qd4 26. Rd1 Qh4+ 27. Kg1 Re8 28. Qc3+ Qf6 29. Qxf6+ Rxf6 30. Bxb7 Rd8 31. c5 Re6 32. Be5+ 1-0